{"text_format":"1","workbook":"xlsx","n_sheets":1,"sheets":["LCB S-106A"],"not_rendered":{"charts":0,"images":1,"macros":0,"external_links":0,"defined_names":0,"comments":0,"pivot_tables":0},"unopened":[],"bounds":{"document_bytes":16777216,"sheet_cells":100000,"rows_first":2000,"rows_last":500,"rows_between":2000,"halvings":0,"cell_chars":16384,"cell_head_chars":4096},"cells_cut":0,"cells_raw":0,"read":"whole","date_system":"1900"}

{"sheet":"LCB S-106A","index":0,"n_rows":49,"n_cols":8,"rows_kept":49,"cut":false,"hidden":false,"merged":[[5,4,5,6],[6,0,6,2],[6,4,6,6],[43,4,45,7],[3,0,3,3],[4,0,4,3],[4,4,4,7],[5,0,5,2],[0,1,0,6],[2,6,2,7],[3,6,3,7],[2,4,2,5],[3,4,3,5],[2,0,2,3],[1,1,1,6]]}
[null,"Special Occasion Purchase Receipt"]
[null,"This form is to be completed in duplicate. 1st Copy – Customer     2nd Copy – LCO Operator"]
["Name of Applicant",null,null,null,null,null,"Permit Number"]
[]
["Purchases",null,null,null,"Returns"]
["Purchased at LCO Operator#",null,null,"Date","Returned to LCO Operator#",null,null,"Date"]
[]
["LCBO #","Units","Retail Price","Total","LCBO #","Units","Retail Price","Total"]
[null,null,null,{"$f":"SUM(B9*C9)","v":0},null,null,null,{"$f":"SUM(F9*G9)","v":0}]
[null,null,null,{"$f":"SUM(B10*C10)","v":0},null,null,null,{"$f":"SUM(F10*G10)","v":0}]
[null,null,null,{"$f":"SUM(B11*C11)","v":0},null,null,null,0]
[null,null,null,0,null,null,null,0]
[null,null,null,0,null,null,null,0]
[null,null,null,0,null,null,null,0]
[null,null,null,0,null,null,null,0]
[null,null,null,0,null,null,null,0]
[null,null,null,0,null,null,null,0]
[null,null,null,0,null,null,null,0]
[null,null,null,{"$f":"SUM(B19*C19)","v":0},null,null,null,{"$f":"SUM(F19*G19)","v":0}]
[null,null,null,{"$f":"SUM(B20*C20)","v":0},null,null,null,{"$f":"SUM(F20*G20)","v":0}]
[null,null,null,0,null,null,null,0]
[null,null,null,0,null,null,null,0]
[null,null,null,0,null,null,null,0]
[null,null,null,0,null,null,null,0]
[null,null,null,0,null,null,null,0]
[null,null,null,0,null,null,null,0]
[null,null,null,0,null,null,null,0]
[null,null,null,0,null,null,null,0]
[null,null,null,0,null,null,null,0]
[null,null,null,0,null,null,null,0]
[null,null,null,0,null,null,null,0]
[null,null,null,0,null,null,null,0]
[null,null,null,0,null,null,null,0]
[null,null,null,0,null,null,null,0]
[null,null,null,0,null,null,null,0]
[null,null,null,0,null,null,null,0]
[null,null,null,0,null,null,null,0]
[null,null,null,0,null,null,null,0]
[null,null,null,{"$f":"SUM(B39*C39)","v":0},null,null,null,{"$f":"SUM(F39*G39)","v":0}]
[null,null,null,{"$f":"SUM(B40*C40)","v":0},null,null,null,{"$f":"SUM(F40*G40)","v":0}]
["TOTAL SALE",{"$f":"SUM(B19:B40)","v":0},null,{"$f":"SUM(D9:D40)","v":0},"TOTAL RETURN",{"$f":"SUM(F19:F40)","v":0},null,{"$f":"SUM(H9:H40)","v":0}]
[]
[]
[null,null,null,null,"The refund is calculated on each bottle of wine and spirits and each case of beer that is returned within 30 DAYS of the date of the function in an unopened and saleable condition."]
[]
[]
[]
[]
["LCB 2459 (08-19)"]